bitfinex/quotes_BTCUSD_20220405
["timestamp","ask_amount","ask_price","bid_price","bid_amount"]
[1649174231203,0.00049276,45779.0,45774.0,0.58607804]
[1649174231299,0.002,45780.0,45774.0,0.58607804]
[1649174231501,0.00049369,45779.0,45774.0,0.58607804]
[1649174231599,0.00049369,45779.0,45776.0,0.324381]
[1649174231699,0.00049369,45779.0,45774.0,0.61093218]
[1649174231799,0.00049369,45779.0,45775.0,0.17886943]
[1649174231899,0.00049369,45779.0,45774.0,0.61093218]
[1649174232249,0.00049369,45779.0,45774.0,0.58607804]
[1649174232449,0.002,45780.0,45774.0,0.58607804]
[1649174232649,0.00049369,45779.0,45774.0,0.58607804]
[1649174232749,0.00349369,45783.0,45774.0,0.58607804]
[1649174232848,0.25129469,45780.0,45774.0,0.81795401]
[1649174233249,0.25129469,45780.0,45774.0,0.40720861]
[1649174233348,0.9,45779.0,45774.0,0.40720861]
[1649174234251,0.9,45779.0,45774.0,0.1]
[1649174234353,0.9,45779.0,45772.0,0.17886943]
[1649174234354,0.9,45779.0,45771.0,0.17886943]
[1649174234454,0.9,45779.0,45770.0,0.27886943]
[1649174234455,0.0437,45778.0,45770.0,0.27886943]
[1649174234554,0.3,45777.0,45770.0,0.17886943]
[1649174234654,0.3,45777.0,45769.0,0.17886943]
[1649174234753,0.0437,45776.0,45768.0,0.17886943]
[1649174235053,0.0437,45776.0,45769.0,0.17886943]
[1649174235257,0.0437,45776.0,45769.0,0.44780111]
[1649174235357,0.0437,45776.0,45769.0,0.54780111]
[1649174235758,0.0437,45776.0,45769.0,0.36893168]
[1649174235855,0.0437,45776.0,45768.0,0.17886943]
[1649174236259,0.0437,45776.0,45767.0,0.54567342]
[1649174236789,0.10924871,45775.0,45767.0,0.54567342]
[1649174236989,0.25266794,45772.0,45768.0,0.17886943]
[1649174237188,0.0437,45774.0,45768.0,0.17886943]
[1649174237389,0.0437,45774.0,45768.0,0.17884532]
[1649174237489,0.0437,45774.0,45768.0,0.17935899]
[1649174237589,0.0437,45774.0,45769.0,0.17884532]
[1649174238242,0.27639603,45772.0,45769.0,0.17884532]
[1649174238443,0.0437,45774.0,45768.0,0.17884532]
[1649174238693,0.05461862,45772.0,45769.0,0.00052293]
[1649174239592,0.05461862,45772.0,45768.0,0.17884532]
[1649174239697,0.34269075,45772.0,45768.0,0.17884532]
[1649174239793,0.34269075,45772.0,45767.0,0.54564931]
[1649174239893,0.34269075,45772.0,45768.0,0.00052293]
[1649174239994,0.05461862,45772.0,45768.0,0.00052293]
[1649174240393,0.05461862,45772.0,45768.0,0.17936825]
[1649174240647,0.0287,45774.0,45768.0,0.17936825]
[1649174240838,0.0287,45774.0,45767.0,0.54564931]
[1649174241039,0.0287,45774.0,45768.0,0.17884532]
[1649174241438,0.0287,45774.0,45768.0,0.17936826]
[1649174241942,0.0287,45774.0,45769.0,0.17884532]
[1649174242240,0.0287,45774.0,45769.0,0.47666686]
[1649174242340,0.24703277,45776.0,45769.0,0.47666686]
[1649174242341,0.85556396,45779.0,45769.0,0.39830598]
[1649174242441,0.89926396,45779.0,45769.0,0.57714845]
[1649174243195,1.07728962,45779.0,45769.0,0.57714845]
[1649174243293,1.07728962,45779.0,45769.0,0.57666401]
[1649174243493,1.07728962,45779.0,45772.0,0.00048443]
[1649174244094,1.0751038,45779.0,45772.0,0.00048443]
[1649174244240,1.1251038,45779.0,45772.0,0.00048443]
[1649174244438,1.1251038,45779.0,45769.0,0.57666401]
[1649174244639,0.94707814,45779.0,45772.0,0.00048444]
[1649174244738,1.1251038,45779.0,45772.0,0.00048444]
[1649174245092,0.94707814,45779.0,45772.0,0.00048444]
[1649174245493,0.89707814,45779.0,45772.0,0.00048444]
[1649174245699,0.85337814,45779.0,45772.0,0.054593]
[1649174245796,0.85337814,45779.0,45772.0,0.23343547]
[1649174245893,0.85337814,45779.0,45773.0,0.17884247]
[1649174245996,0.85337814,45779.0,45775.0,0.17884247]
[1649174246095,0.85337814,45779.0,45772.0,0.27864642]
[1649174246096,0.85337814,45779.0,45774.0,0.17884247]
[1649174246197,0.85337814,45779.0,45775.0,0.17884247]
[1649174246599,0.85337814,45779.0,45778.0,0.23470008]
[1649174248841,0.89646615,45779.0,45778.0,0.23470008]
[1649174252897,0.89646615,45779.0,45778.0,0.44190551]
[1649174252998,0.89646615,45779.0,45778.0,0.23470008]
[1649174253098,0.89646615,45779.0,45778.0,0.51352629]
[1649174253551,0.89646615,45779.0,45778.0,0.33470008]
[1649174254150,0.89646615,45779.0,45778.0,0.23470008]
[1649174255406,0.89646615,45779.0,45777.0,0.27882621]
[1649174255539,0.89646615,45779.0,45777.0,0.17882621]
[1649174255637,0.89646615,45779.0,45775.0,0.17882621]
[1649174255742,0.89646615,45779.0,45774.0,0.18974621]
[1649174255940,0.89646615,45779.0,45774.0,0.17882621]
[1649174256043,0.89646615,45779.0,45773.0,0.17882621]
[1649174256141,0.89646615,45779.0,45772.0,0.50528967]
[1649174256243,0.89646615,45779.0,45773.0,0.17882621]
[1649174257242,0.89646615,45779.0,45774.0,0.17882621]
[1649174258899,0.89646615,45779.0,45773.0,0.17882621]
[1649174259001,0.89646615,45779.0,45774.0,0.17882621]
[1649174259590,0.89646615,45779.0,45773.0,0.17882621]
[1649174261347,0.85337814,45779.0,45773.0,0.17882621]
[1649174261649,0.85337814,45779.0,45774.0,0.17882621]
[1649174262254,0.85337814,45779.0,45775.0,0.17882621]
[1649174262750,0.85337814,45779.0,45778.0,0.26544983]
[1649174263849,0.85337814,45779.0,45778.0,0.44427604]
[1649174264543,0.85337814,45779.0,45778.0,0.76865704]
[1649174264645,0.85337814,45779.0,45778.0,0.99189011]
[1649174264896,0.85337814,45779.0,45778.0,0.4886829]
[1649174265001,0.85337814,45779.0,45778.0,0.8130639]
[1649174265095,0.85337814,45779.0,45778.0,0.4886829]
[1649174265195,0.85337814,45779.0,45778.0,0.66750911]
[1649174265696,0.85337814,45779.0,45778.0,0.8130639]
[1649174265995,0.85337814,45779.0,45778.0,0.4886829]
[1649174266095,0.85337814,45779.0,45778.0,0.9130639]
[1649174267246,0.25700583,45779.0,45778.0,0.9130639]
[1649174267346,0.25700583,45779.0,45778.0,1.1203132]
[1649174268246,0.25700583,45779.0,45778.0,0.7959322]
[1649174268554,0.25700583,45779.0,45778.0,1.29910285]
[1649174268651,0.25700583,45779.0,45778.0,1.09185355]
[1649174268751,0.25700583,45779.0,45778.0,0.5886829]
[1649174268857,0.25700583,45779.0,45778.0,0.9130639]
[1649174268949,0.25700583,45779.0,45778.0,0.5886829]
[1649174269051,0.25700583,45779.0,45778.0,0.7674637]
[1649174269153,0.25700583,45779.0,45778.0,1.0918447]
[1649174269250,0.25700583,45779.0,45778.0,0.5886829]
[1649174269400,0.25700583,45779.0,45778.0,0.9130639]
[1649174269503,0.25700583,45779.0,45778.0,0.76746374]
[1649174269751,0.25700583,45779.0,45778.0,1.09184474]
[1649174270154,0.25700583,45779.0,45778.0,0.54423067]
[1649174270253,0.25700583,45779.0,45778.0,0.86861167]
[1649174271196,0.25700583,45779.0,45778.0,0.54423067]
[1649174271293,0.25700583,45779.0,45778.0,0.86861167]
[1649174271796,0.25700583,45779.0,45778.0,0.54423067]
[1649174271895,0.25700583,45779.0,45778.0,0.68983083]
[1649174272096,0.25700583,45779.0,45778.0,0.36544983]
[1649174272196,0.25700583,45779.0,45778.0,0.54423067]
[1649174272298,0.26784516,45786.0,45778.0,0.54423067]
[1649174272397,0.00053128,45781.0,45778.0,0.54423067]
[1649174272599,0.00053128,45781.0,45778.0,0.36544983]
[1649174272800,0.00053128,45781.0,45778.0,0.54423067]
[1649174273303,0.002,45789.0,45778.0,0.54423067]
[1649174273501,0.24406261,45785.0,45778.0,0.62454401]
[1649174273601,0.00053128,45782.0,45778.0,0.62454401]
[1649174274246,0.00053128,45782.0,45778.0,0.36544983]
[1649174274347,0.00053128,45782.0,45778.0,0.26544983]
[1649174274499,0.24406261,45785.0,45778.0,0.26544983]
[1649174274796,0.24406261,45785.0,45778.0,0.26499839]
[1649174275096,0.00051019,45782.0,45778.0,0.26499839]
[1649174275496,0.00051019,45782.0,45778.0,0.51341245]
[1649174275597,0.00051019,45782.0,45778.0,0.61341245]
[1649174275698,0.24406261,45785.0,45778.0,0.61341245]
[1649174275999,0.00047427,45782.0,45778.0,0.61341245]
[1649174276599,0.00047427,45782.0,45778.0,0.36499839]
[1649174276699,0.00047427,45782.0,45778.0,0.26499839]
[1649174276902,0.24406261,45785.0,45778.0,0.26499839]
[1649174277100,0.00047427,45782.0,45778.0,0.26499839]
[1649174277501,0.00047427,45782.0,45778.0,0.44377923]
[1649174277701,0.00047427,45782.0,45778.0,0.36499839]
[1649174277901,0.00047427,45782.0,45779.0,0.27604481]
[1649174278142,0.0011,45788.0,45779.0,0.27604481]
[1649174278544,0.00047688,45782.0,45779.0,0.27604481]
[1649174279195,0.00047688,45782.0,45778.0,0.36499839]
[1649174279300,0.0011,45788.0,45778.0,0.36499839]
[1649174279545,0.00047864,45783.0,45778.0,0.36499839]
[1649174280151,0.00047864,45783.0,45778.0,0.65155361]
[1649174280252,0.00047864,45783.0,45778.0,0.36499839]
[1649174280450,0.30206894,45784.0,45778.0,0.26499839]
[1649174280550,0.05460968,45783.0,45778.0,0.1]
[1649174280753,0.35460968,45783.0,45778.0,0.1]
[1649174280851,0.35460968,45783.0,45776.0,0.17878629]
[1649174280852,0.0437,45782.0,45776.0,0.17878629]
[1649174281053,0.0437,45782.0,45774.0,0.1]
[1649174281960,0.00047871,45781.0,45772.0,0.1792651]
[1649174282360,0.0437,45780.0,45772.0,0.1792651]
[1649174282910,0.0437,45780.0,45772.0,0.17878629]
[1649174283110,0.0437,45780.0,45772.0,0.17926509]
[1649174283111,0.28400484,45776.0,45772.0,0.17926509]
[1649174283514,0.28400484,45776.0,45772.0,0.0004788]
[1649174283713,0.28400484,45776.0,45772.0,0.17926509]
[1649174284115,0.28400484,45776.0,45772.0,0.17878629]
[1649174284218,0.28975367,45779.0,45772.0,0.17878629]
[1649174284315,0.28975367,45779.0,45772.0,0.17926424]
[1649174284514,0.33345367,45779.0,45773.0,0.17878629]
[1649174285643,0.27851642,45777.0,45773.0,0.17878629]
[1649174285792,0.33345367,45779.0,45773.0,0.17878629]
[1649174286042,0.28345367,45779.0,45773.0,0.17878629]
[1649174286243,0.28345367,45779.0,45772.0,0.17926353]
[1649174286397,0.3,45778.0,45772.0,0.17926353]
[1649174286494,0.47781273,45778.0,45770.0,0.17878629]
[1649174286595,0.05462,45777.0,45768.0,0.17878629]
[1649174286695,0.23243273,45777.0,45768.0,0.17878629]
[1649174286802,0.23243273,45777.0,45764.0,0.1882]
[1649174286803,0.17781273,45776.0,45767.0,0.17878629]
[1649174286896,0.3,45775.0,45764.0,0.36698629]
[1649174286996,0.3437,45775.0,45772.0,0.00047724]
[1649174287099,0.30275198,45774.0,45772.0,0.00047724]
[1649174287299,0.0437,45773.0,45772.0,0.00047724]
[1649174287397,0.409254,45773.0,45772.0,0.00047724]
[1649174287596,0.459254,45773.0,45772.0,0.00047724]
[1649174287695,0.459254,45773.0,45761.0,0.17878629]
[1649174287696,0.509254,45773.0,45761.0,0.17878629]
[1649174287798,0.29676302,45762.0,45761.0,0.17878629]
[1649174287898,0.35673302,45762.0,45761.0,0.15656988]
[1649174288195,0.35673302,45762.0,45759.0,0.02234339]
[1649174289648,0.65842352,45762.0,45759.0,0.02234339]
[1649174293392,0.35673302,45762.0,45759.0,0.02234339]
[1649174293594,0.05997,45762.0,45759.0,0.02234339]
[1649174293695,0.02103,45763.0,45759.0,0.02234339]
[1649174293796,0.0437,45765.0,45759.0,0.02234339]
[1649174294696,0.24830621,45762.0,45759.0,0.02234339]
[1649174295350,0.53201455,45762.0,45760.0,0.00027057]
[1649174295450,0.53201455,45762.0,45759.0,0.00761396]
[1649174296054,0.24830621,45762.0,45759.0,0.00761396]
[1649174297145,0.30290267,45761.0,45759.0,0.00761396]
[1649174297344,0.24830621,45762.0,45759.0,0.00761396]
[1649174298296,0.0437,45765.0,45759.0,0.00761396]
[1649174299395,0.0437,45765.0,45760.0,0.29653064]
[1649174299549,0.0437,45765.0,45759.0,0.00761396]
[1649174300601,0.0437,45765.0,45759.0,0.23322865]
[1649174300799,0.0437,45765.0,45759.0,0.00761396]
[1649174302457,0.05462,45767.0,45759.0,0.00761396]
[1649174302555,0.0437,45767.0,45759.0,0.00761396]
[1649174302957,0.0437,45767.0,45760.0,0.26189407]
[1649174303060,0.05462,45767.0,45760.0,0.26189407]
[1649174303159,0.0437,45767.0,45759.0,0.00761396]
[1649174304246,0.0437,45767.0,45760.0,0.22900268]
[1649174304395,0.05462,45767.0,45760.0,0.22900268]
[1649174304497,0.0437,45767.0,45760.0,0.22900268]
[1649174306602,0.0437,45767.0,45759.0,0.00761396]
[1649174307754,0.0437,45767.0,45761.0,0.24037912]
[1649174308100,0.04344132,45767.0,45761.0,0.24037912]
[1649174308651,0.04344132,45767.0,45763.0,0.26586441]
[1649174308901,0.30048931,45775.0,45763.0,0.26586441]
[1649174308902,0.8067,45773.0,45763.0,0.26586441]
[1649174309053,0.0437,45773.0,45763.0,0.26586441]
[1649174309653,0.1307,45776.0,45763.0,0.26586441]
[1649174309762,0.3,45779.0,45763.0,0.26586441]
[1649174309851,0.00049192,45775.0,45763.0,0.26586441]
[1649174310201,0.00049192,45775.0,45771.0,0.22825457]
[1649174310305,0.00049192,45775.0,45763.0,0.36586441]
[1649174310404,0.00049192,45775.0,45763.0,0.26586441]
[1649174310509,0.00049192,45775.0,45763.0,0.36586441]
[1649174310603,0.28341047,45779.0,45763.0,0.36586441]
[1649174310907,0.29785556,45775.0,45763.0,0.36586441]
[1649174311059,0.3,45774.0,45763.0,0.36586441]
[1649174311354,0.28029301,45772.0,45764.0,0.24041571]
[1649174311454,0.3,45774.0,45764.0,0.24041571]
[1649174311954,0.29785556,45775.0,45764.0,0.24041571]
[1649174312555,0.3,45774.0,45764.0,0.24041571]
[1649174312657,0.2989466,45773.0,45764.0,0.24041571]
[1649174313155,0.3,45774.0,45764.0,0.24041571]
[1649174314208,0.53591927,45774.0,45764.0,0.24041571]
[1649174315057,0.3,45774.0,45764.0,0.24041571]
[1649174315158,0.35300637,45775.0,45764.0,0.24041571]
[1649174315360,0.35247756,45775.0,45764.0,0.24041571]
[1649174315647,0.29838315,45775.0,45764.0,0.24041571]
[1649174316097,0.59838315,45775.0,45764.0,0.24041571]
[1649174316198,0.28433562,45774.0,45764.0,0.24041571]
[1649174316698,0.59785556,45775.0,45764.0,0.24041571]
[1649174316801,0.59838315,45775.0,45764.0,0.24041571]
[1649174316998,0.29838315,45775.0,45764.0,0.24041571]
[1649174317753,0.3,45778.0,45771.0,0.30242888]
[1649174317855,0.04308801,45773.0,45771.0,0.30242888]
[1649174317960,0.04308801,45772.0,45771.0,0.30242888]
[1649174318057,0.04308801,45772.0,45763.0,0.26586441]
[1649174318156,0.00049114,45775.0,45763.0,0.26586441]
[1649174318756,0.00049114,45775.0,45763.0,0.4445282]
[1649174318859,0.00049114,45775.0,45763.0,0.5445282]
[1649174318957,0.4,45780.0,45763.0,0.5445282]
[1649174319255,0.27286177,45779.0,45770.0,0.31610247]
[1649174319354,0.04308801,45774.0,45770.0,0.31610247]
[1649174319456,0.04308801,45771.0,45770.0,0.31610247]
[1649174321605,0.04308801,45771.0,45770.0,0.64048347]
[1649174321708,0.04308801,45771.0,45770.0,0.31610247]
[1649174321805,0.04308801,45771.0,45770.0,0.64048347]
[1649174322205,0.04308801,45771.0,45770.0,0.31610247]
[1649174322305,0.04308801,45771.0,45770.0,0.74048347]
[1649174323054,0.04308801,45771.0,45770.0,0.61539367]
[1649174323154,0.04308801,45771.0,45770.0,0.93977467]
[1649174323654,0.04308801,45771.0,45770.0,0.61539367]
[1649174323958,0.04308801,45771.0,45770.0,0.41610247]
[1649174325816,0.00051094,45775.0,45771.0,0.02764458]
[1649174326116,1.43280308,45781.0,45771.0,0.02764458]
[1649174326215,1.43075958,45781.0,45771.0,0.02764458]
[1649174326517,0.00050207,45775.0,45771.0,0.02764458]
[1649174327458,1.43075958,45781.0,45771.0,0.02764458]
[1649174327662,0.00050207,45775.0,45771.0,0.02764458]
[1649174328561,1.48536714,45781.0,45771.0,0.02764458]
[1649174328865,0.00050207,45775.0,45771.0,0.02764458]
[1649174329814,1.48536714,45781.0,45771.0,0.02764458]
[1649174330013,0.00049244,45775.0,45771.0,0.02764458]
[1649174331012,1.48536714,45781.0,45771.0,0.02764458]
[1649174331217,0.27900807,45780.0,45771.0,0.02764458]
[1649174331617,0.00049244,45775.0,45771.0,0.02764458]
[1649174332115,1.53536714,45781.0,45771.0,0.02764458]
[1649174332416,0.00049244,45775.0,45771.0,0.02764458]
[1649174332518,0.29927756,45780.0,45771.0,0.02764458]
[1649174332722,1.53536714,45781.0,45771.0,0.02764458]
[1649174333221,0.3,45780.0,45771.0,0.02764458]
[1649174333419,1.53536714,45781.0,45771.0,0.02764458]
[1649174334265,1.48536714,45781.0,45771.0,0.02764458]
[1649174335813,0.3,45780.0,45771.0,0.02764458]
[1649174337164,0.00054545,45778.0,45771.0,0.02764458]
[1649174337264,0.054612,45777.0,45771.0,0.02764458]
[1649174338402,0.05515744,45777.0,45771.0,0.02764458]
[1649174339355,0.054612,45777.0,45771.0,0.02764458]
[1649174340206,0.05515744,45777.0,45771.0,0.02764458]
[1649174340605,0.054612,45777.0,45771.0,0.02764458]
[1649174340957,0.05515744,45777.0,45771.0,0.02764458]
[1649174341776,0.054612,45777.0,45771.0,0.02764458]
[1649174341979,0.05514632,45777.0,45771.0,0.02764458]
[1649174342930,0.054612,45777.0,45771.0,0.02764458]
[1649174343232,0.05514632,45777.0,45771.0,0.02764458]
[1649174343780,0.00053432,45777.0,45771.0,0.02764458]
[1649174343883,0.00053432,45777.0,45771.0,0.02591432]
[1649174344231,1.48536635,45781.0,45771.0,0.02591432]
[1649174344430,0.00053432,45777.0,45771.0,0.02591432]
[1649174345383,1.48536635,45781.0,45771.0,0.02591432]
[1649174345808,0.00052675,45777.0,45771.0,0.02591432]
[1649174346610,1.47936635,45781.0,45771.0,0.02591432]
[1649174346810,0.00052675,45777.0,45771.0,0.02591432]
[1649174346910,0.05513799,45777.0,45774.0,0.28789986]
[1649174347613,0.04513799,45777.0,45774.0,0.28789986]
[1649174347913,0.04461124,45777.0,45774.0,0.28789986]
[1649174348666,0.04461124,45777.0,45771.0,0.12591432]
[1649174348768,0.04461124,45777.0,45771.0,0.02591432]
[1649174349400,0.0451195,45777.0,45771.0,0.02591432]
[1649174349604,0.0451195,45777.0,45773.0,0.27695527]
[1649174350252,0.04461124,45777.0,45773.0,0.27695527]
[1649174350501,0.04511951,45777.0,45773.0,0.27695527]
[1649174351353,0.04461124,45777.0,45773.0,0.27695527]
[1649174351856,0.04511951,45777.0,45773.0,0.27695527]
[1649174352155,0.00050827,45777.0,45773.0,0.27695527]
[1649174352553,0.19777412,45780.0,45773.0,0.27695527]
[1649174352853,0.00051753,45777.0,45773.0,0.27695527]
[1649174353827,0.19777337,45780.0,45773.0,0.27695527]
[1649174354028,0.19777337,45780.0,45772.0,0.17880497]
[1649174354228,0.00051753,45777.0,45772.0,0.17880497]
[1649174354528,0.1922909,45780.0,45772.0,0.17880497]
[1649174354931,0.1922909,45780.0,45773.0,0.17880497]
[1649174355033,0.1922909,45780.0,45774.0,0.24242626]
[1649174355132,0.14316556,45780.0,45774.0,0.24242626]
[1649174355432,1.43075958,45781.0,45774.0,0.24242626]
[1649174356433,0.14369101,45780.0,45774.0,0.24242626]
[1649174356778,0.00052715,45780.0,45774.0,0.24242626]
[1649174356972,0.14368578,45780.0,45774.0,0.24242626]
[1649174357472,0.14315863,45780.0,45774.0,0.24242626]
[1649174357772,1.43075958,45781.0,45774.0,0.24242626]
[1649174357872,1.43075958,45781.0,45774.0,0.42123123]
[1649174357873,0.00052715,45779.0,45774.0,0.42123123]
[1649174358578,1.43075958,45781.0,45774.0,0.42123123]
[1649174358877,0.00027487,45779.0,45774.0,0.42123123]
[1649174359779,1.43075958,45781.0,45774.0,0.42123123]
[1649174359878,1.43075958,45781.0,45775.0,0.17880497]
[1649174360079,0.00054503,45779.0,45775.0,0.17880497]
[1649174360857,0.00054503,45779.0,45776.0,0.17880497]
[1649174360961,0.00054503,45779.0,45775.0,0.17880497]
[1649174361058,1.43075958,45781.0,45775.0,0.17880497]
[1649174361357,0.00054503,45779.0,45775.0,0.17880497]
[1649174361456,0.00054503,45779.0,45774.0,0.17880497]
[1649174362309,0.66686121,45780.0,45774.0,0.17880497]
[1649174362511,1.39729543,45781.0,45774.0,0.17880497]
[1649174362712,0.05461493,45778.0,45774.0,0.17880497]
[1649174364838,0.05461493,45778.0,45774.0,0.17929961]
[1649174365442,0.05461493,45778.0,45774.0,0.47461714]
[1649174365841,0.10923493,45778.0,45774.0,0.17880497]
[1649174365942,0.10923493,45778.0,45773.0,0.17880497]
[1649174366344,0.10923493,45778.0,45774.0,0.00049464]
[1649174366543,0.10923493,45778.0,45774.0,0.17929961]
[1649174366643,0.10923493,45778.0,45774.0,0.00049464]
[1649174366943,0.10923493,45778.0,45774.0,0.17929961]
[1649174367147,0.10923493,45778.0,45774.0,0.17880497]
[1649174367246,0.10923493,45778.0,45774.0,0.17929961]
[1649174367343,0.15305393,45778.0,45774.0,0.17929961]
[1649174368210,0.15305393,45778.0,45773.0,0.17880497]
[1649174368308,0.15305393,45778.0,45774.0,0.17880497]
[1649174368411,0.15305393,45778.0,45774.0,0.17931521]
[1649174368709,0.15305393,45778.0,45774.0,0.00051024]
[1649174369110,0.15305393,45778.0,45774.0,0.27682773]
[1649174369409,0.15305393,45778.0,45774.0,0.45512246]
[1649174369712,0.15305393,45778.0,45774.0,0.4556327]
[1649174370314,0.15305393,45778.0,45774.0,0.27682773]
[1649174370411,0.15305393,45778.0,45774.0,0.00051024]
[1649174370613,0.15305393,45778.0,45773.0,0.17890375]
[1649174370912,0.15305393,45778.0,45774.0,0.00051024]
[1649174371811,0.15305393,45778.0,45773.0,0.22890375]
[1649174371909,0.15305393,45778.0,45773.0,0.53676843]
[1649174372113,0.15305393,45778.0,45773.0,0.22890375]
[1649174372314,0.15305393,45778.0,45774.0,0.0002517]
[1649174372612,0.4468541,45778.0,45774.0,0.0002517]
[1649174373065,0.4468541,45778.0,45773.0,0.48448099]
[1649174373162,0.4468541,45778.0,45773.0,0.22890375]
[1649174373265,0.4468541,45778.0,45774.0,0.0002517]
[1649174374217,0.70440038,45778.0,45774.0,0.0002517]
[1649174374321,0.4468541,45778.0,45774.0,0.0002517]
[1649174374419,0.5561068,45778.0,45772.0,0.22890375]
[1649174374519,0.50149187,45778.0,45772.0,0.22890375]
[1649174374616,0.05462619,45777.0,45772.0,0.22890375]
[1649174374819,0.05462619,45777.0,45774.0,0.0002517]
[1649174375547,0.05462619,45777.0,45772.0,0.22890375]
[1649174375746,0.05462619,45777.0,45773.0,0.00052738]
[1649174376702,0.05462619,45777.0,45771.0,0.25481807]
[1649174377047,0.05462619,45777.0,45773.0,0.00052738]
[1649174378048,0.05462619,45777.0,45772.0,0.17890375]
[1649174378250,0.05462619,45777.0,45771.0,0.25481807]
[1649174378652,0.05462619,45777.0,45773.0,0.00052738]
[1649174379274,0.05462619,45777.0,45771.0,0.20481807]
[1649174379567,0.05462619,45777.0,45773.0,0.00052686]
[1649174380517,0.05462619,45777.0,45773.0,0.00103354]
[1649174380718,0.05462619,45777.0,45773.0,0.00050668]
[1649174381565,0.05462619,45777.0,45771.0,0.20481807]
[1649174381866,0.05462619,45777.0,45773.0,0.00050668]
[1649174382667,0.05462619,45777.0,45771.0,0.20481807]
[1649174382868,0.05462619,45777.0,45773.0,0.00048876]
[1649174383862,0.05462619,45777.0,45772.0,0.3]
[1649174384159,0.05462619,45777.0,45773.0,0.0004917]
[1649174385115,0.05462619,45777.0,45771.0,0.02591432]
[1649174385314,0.05462619,45777.0,45773.0,0.0004917]
[1649174385617,0.36345472,45777.0,45773.0,0.0004917]
[1649174386167,0.05462619,45777.0,45773.0,0.0004917]
[1649174386317,0.05462619,45777.0,45771.0,0.02591432]
[1649174386617,0.35462,45776.0,45773.0,0.0004917]
[1649174386788,0.48730032,45776.0,45773.0,0.0004917]
[1649174387187,1.67876472,45774.0,45773.0,0.00042193]
[1649174387291,1.68968472,45774.0,45773.0,0.00042193]
[1649174387487,1.87652379,45774.0,45771.0,0.02591432]
[1649174387588,0.01092,45773.0,45771.0,0.02591432]
[1649174387686,0.15405907,45773.0,45771.0,0.02591432]
[1649174387990,0.0437,45772.0,45771.0,0.02591432]
[1649174388087,0.14313907,45773.0,45771.0,0.02591432]
[1649174388190,0.24642,45777.0,45771.0,0.02591432]
[1649174388291,0.24642,45777.0,45771.0,0.30227756]
[1649174388392,0.24642,45777.0,45771.0,0.48114942]
[1649174388992,0.24642,45777.0,45775.0,0.25828588]
[1649174389190,0.01092,45777.0,45775.0,0.25828588]
[1649174389944,0.043819,45778.0,45775.0,0.25828588]
[1649174390394,0.043819,45778.0,45775.0,0.31288688]
[1649174391615,0.043819,45778.0,45775.0,0.25828588]
[1649174391716,0.043819,45778.0,45775.0,0.31288688]
[1649174392517,0.043819,45778.0,45775.0,0.49175874]
[1649174392619,0.01092,45786.0,45783.0,0.38168152]
[1649174392718,0.11430819,45784.0,45783.0,0.38168152]
[1649174392819,0.12522819,45784.0,45783.0,0.38168152]
[1649174392922,0.12522819,45784.0,45783.0,0.08763799]
[1649174395869,0.17984119,45784.0,45783.0,0.08763799]
[1649174395970,0.47984119,45784.0,45783.0,0.08763799]
[1649174396269,0.6350895,45784.0,45783.0,0.08763799]
[1649174397776,1.5249895,45784.0,45783.0,0.08763799]
[1649174397873,1.5249895,45784.0,45773.0,0.000259]
[1649174397874,1.43988919,45784.0,45773.0,0.000259]
[1649174398020,0.054631,45779.0,45773.0,0.000259]
[1649174398170,0.20986831,45778.0,45773.0,0.000259]
[1649174398321,0.20986831,45778.0,45771.0,0.02591432]
[1649174398469,0.0999,45776.0,45771.0,0.02591432]
[1649174398570,0.01092,45775.0,45771.0,0.02591432]
[1649174398669,0.3165115,45774.0,45773.0,0.000259]
[1649174398972,0.42577126,45774.0,45773.0,0.000259]
[1649174399223,0.0437,45774.0,45773.0,0.000259]
[1649174399519,0.0437,45774.0,45771.0,0.02591432]
[1649174399719,0.0437,45774.0,45771.0,0.02644037]
[1649174399921,0.0437,45774.0,45771.0,0.30545345]
[1649174400021,0.0437,45774.0,45771.0,0.02644037]
[1649174400224,0.05264141,45774.0,45771.0,0.02550023]
[1649174400526,0.05264141,45774.0,45771.0,0.0019538]
[1649174401022,0.28049575,45773.0,45771.0,0.0019538]
[1649174401124,0.28049575,45773.0,45771.0,0.00142775]
[1649174401229,0.0437,45772.0,45771.0,0.00142775]
[1649174401324,0.42413556,45772.0,45771.0,0.00142775]
[1649174401524,0.05462,45772.0,45771.0,0.00142775]
[1649174402850,0.05462,45772.0,45765.0,0.1092483]
[1649174402948,0.0437,45772.0,45771.0,0.45855594]
[1649174403300,0.04645416,45772.0,45771.0,0.30583183]
[1649174403499,0.04645416,45772.0,45766.0,0.00054333]
[1649174403608,0.0437,45772.0,45766.0,0.00054333]
[1649174403701,0.00275416,45767.0,45766.0,0.00054333]
[1649174403902,0.29487817,45767.0,45766.0,0.00054333]
[1649174404202,0.29212401,45767.0,45766.0,0.00054333]
[1649174404357,0.29212401,45767.0,45766.0,0.28827111]
[1649174404453,0.29212401,45767.0,45766.0,0.30583183]
[1649174405259,0.29212401,45767.0,45766.0,0.60583183]
[1649174406370,0.29212401,45767.0,45766.0,1.20522774]
[1649174407519,0.29212401,45767.0,45766.0,1.16933656]
[1649174407721,0.29212401,45767.0,45766.0,0.89939591]
[1649174407819,0.29212401,45767.0,45766.0,1.16933656]
[1649174409074,0.29212401,45767.0,45766.0,1.20230359]
[1649174409174,0.30173939,45767.0,45766.0,1.2038694]
[1649174409283,0.31135477,45767.0,45766.0,1.2038694]
[1649174410585,0.35497688,45767.0,45766.0,1.2038694]
[1649174413314,0.35497688,45767.0,45766.0,1.3538694]
[1649174413465,0.00894141,45774.0,45767.0,0.5965124]
[1649174413563,0.00894141,45774.0,45769.0,0.17884605]
[1649174413663,0.00894141,45774.0,45773.0,0.17468869]
[1649174413762,0.01276609,45774.0,45773.0,0.17468869]
[1649174413862,0.01276609,45774.0,45773.0,0.26994065]
[1649174414414,0.01276609,45774.0,45773.0,0.30290768]
[1649174414515,0.01276609,45774.0,45773.0,0.30447349]
[1649174414615,0.01276609,45774.0,45773.0,0.57720756]
[1649174415667,0.01276609,45774.0,45773.0,0.30447349]
[1649174415971,0.12202189,45774.0,45773.0,0.30447349]
[1649174416821,0.01276609,45774.0,45773.0,0.30447349]
[1649174418074,0.01276609,45774.0,45773.0,0.60746656]
[1649174418274,0.00894141,45774.0,45773.0,0.90746656]
[1649174418379,0.00894141,45774.0,45773.0,0.60746656]
[1649174418474,0.00894141,45774.0,45773.0,0.90746656]
[1649174418572,0.00894141,45774.0,45773.0,0.85097429]
[1649174418674,0.00894141,45774.0,45773.0,1.15097429]
[1649174418826,0.00894141,45774.0,45773.0,1.32120072]
[1649174418930,1.41e-06,45774.0,45773.0,0.91838656]
[1649174419031,1.41e-06,45774.0,45773.0,1.44276756]
[1649174419125,1.41e-06,45774.0,45773.0,1.13977449]
[1649174419425,1.41e-06,45774.0,45773.0,1.08365942]
[1649174419724,1.41e-06,45774.0,45773.0,0.81539349]